bitfinex-derivatives/quotes_BTCF0:USTF0_20240820
["timestamp","ask_amount","ask_price","bid_price","bid_amount"]
[1724120177101,0.06582503,60546.0,60544.0,0.082555]
[1724120177308,0.06582503,60548.0,60544.0,0.06592793]
[1724120177701,0.06582503,60548.0,60545.0,0.14848193]
[1724120178098,0.06582503,60549.0,60545.0,0.14848193]
[1724120178296,0.06582503,60548.0,60545.0,0.082554]
[1724120178597,0.06582503,60548.0,60545.0,0.14848193]
[1724120179101,0.001,60548.0,60545.0,0.14948193]
[1724120179299,0.06682503,60548.0,60545.0,0.14948193]
[1724120179695,0.003,60548.0,60545.0,0.084554]
[1724120179897,0.06582503,60547.0,60545.0,0.084554]
[1724120181307,0.06682503,60547.0,60545.0,0.084554]
[1724120181502,0.001,60547.0,60546.0,0.14848093]
[1724120181704,0.05041946,60547.0,60546.0,0.14848093]
[1724120182017,0.001,60547.0,60546.0,0.082553]
[1724120182208,0.05041946,60547.0,60546.0,0.14849048]
[1724120182406,0.05241946,60547.0,60546.0,0.14849048]
[1724120182702,0.003,60547.0,60546.0,0.082553]
[1724120182902,0.02975702,60547.0,60546.0,0.083553]
[1724120183299,0.02975702,60547.0,60546.0,0.084553]
[1724120183504,0.02975702,60547.0,60546.0,0.002]
[1724120183708,0.06640139,60547.0,60541.0,0.082559]
[1724120184002,0.3608,60542.0,60541.0,0.082559]
[1724120184209,0.48638146,60542.0,60541.0,0.082559]
[1724120184407,0.38756021,60542.0,60541.0,0.082559]
[1724120185610,0.02676021,60542.0,60541.0,0.082559]
[1724120185908,0.12666055,60542.0,60541.0,0.082559]
[1724120186297,0.12665939,60542.0,60541.0,0.082559]
[1724120186505,0.12965939,60542.0,60541.0,0.082559]
[1724120186709,0.03075905,60542.0,60541.0,0.082559]
[1724120187507,0.04316566,60542.0,60541.0,0.082559]
[1724120188208,0.04316566,60542.0,60536.0,0.00024794]
[1724120188209,1.12798566,60542.0,60536.0,0.00024794]
[1724120188412,0.3608,60537.0,60530.0,0.3229]
[1724120188707,0.09888419,60533.0,60530.0,0.3229]
[1724120189310,0.3608,60537.0,60530.0,0.3229]
[1724120189311,0.12564324,60532.0,60530.0,0.3229]
[1724120189508,0.12564324,60531.0,60530.0,0.3229]
[1724120189711,0.12560659,60531.0,60530.0,0.3299]
[1724120190014,0.02675905,60531.0,60530.0,0.3299]
[1724120190803,0.02675905,60531.0,60530.0,0.3229]
[1724120191005,0.11567605,60531.0,60530.0,0.29061001]
[1724120191214,0.11567605,60531.0,60530.0,0.29161001]
[1724120192412,0.11567605,60531.0,60530.0,0.001]
[1724120192413,0.21006736,60531.0,60530.0,0.001]
[1724120193207,0.06191357,60531.0,60530.0,0.001]
[1724120193815,0.11567605,60531.0,60530.0,0.001]
[1724120194019,0.06191357,60531.0,60530.0,0.083574]
[1724120194512,0.11567605,60531.0,60530.0,0.083574]
[1724120194708,0.26381335,60531.0,60530.0,0.083574]
[1724120195018,0.11567605,60531.0,60530.0,0.083574]
[1724120196012,0.06191357,60531.0,60530.0,0.083574]
[1724120196713,0.06191357,60531.0,60530.0,0.09601576]
[1724120197808,0.19358123,60531.0,60530.0,0.09601576]
[1724120198014,0.13166766,60531.0,60530.0,0.09601576]
[1724120198204,0.00024724,60538.0,60530.0,0.01344176]
[1724120198414,0.00024724,60538.0,60534.0,0.06589563]
[1724120198713,0.00024724,60538.0,60537.0,0.082565]
[1724120199907,0.00024724,60538.0,60537.0,0.578125]
[1724120200107,0.04937238,60546.0,60545.0,0.082554]
[1724120200514,0.04937238,60547.0,60546.0,0.082553]
[1724120201403,0.04937238,60548.0,60547.0,0.082551]
[1724120202708,0.01200502,60548.0,60547.0,0.082551]
[1724120202908,0.06582984,60550.0,60547.0,0.082551]
[1724120203820,0.003,60548.0,60547.0,0.083551]
[1724120204423,0.001,60548.0,60547.0,0.084551]
[1724120205018,0.001,60548.0,60547.0,0.083551]
[1724120205218,0.001,60548.0,60547.0,0.084551]
[1724120205219,0.004,60548.0,60547.0,0.084551]
[1724120206121,0.12257318,60548.0,60547.0,0.084551]
[1724120206717,0.12257318,60548.0,60547.0,0.07609591]
[1724120207221,0.06722617,60548.0,60547.0,0.07609591]
[1724120207424,0.12214137,60548.0,60547.0,0.07609591]
[1724120207619,0.06722147,60548.0,60547.0,0.07609591]
[1724120207818,0.12213441,60548.0,60547.0,0.07609591]
[1724120210124,0.19370673,60548.0,60547.0,0.05137023]
[1724120213123,0.03075641,60548.0,60547.0,0.05137023]
[1724120216528,0.11330641,60548.0,60547.0,0.002]
[1724120216723,0.08655,60548.0,60547.0,0.002]
[1724120216924,0.11330662,60548.0,60547.0,0.002]
[1724120219531,0.03075662,60548.0,60547.0,0.002]
[1724120220324,0.03075662,60548.0,60547.0,0.084551]
[1724120221417,0.08627121,60548.0,60547.0,0.084551]
[1724120221622,0.03075552,60548.0,60547.0,0.084551]
[1724120222424,0.03075552,60548.0,60547.0,0.175851]
[1724120224437,0.03075569,60548.0,60547.0,0.175851]
[1724120228332,0.28789509,60548.0,60547.0,0.10871226]
[1724120229334,0.27715629,60548.0,60547.0,0.10871226]
[1724120229542,0.34882855,60548.0,60547.0,0.46951226]
[1724120229838,0.28019877,60548.0,60547.0,0.96499226]
[1724120230142,0.18391383,60548.0,60547.0,0.96499226]
[1724120230331,0.34882855,60548.0,60547.0,0.96499226]
[1724120230530,0.18391383,60548.0,60547.0,0.671651]
[1724120231231,0.34882855,60548.0,60547.0,0.082551]
[1724120231631,0.18391383,60548.0,60547.0,0.443351]
[1724120231965,0.18391383,60548.0,60547.0,0.938831]
[1724120232435,0.11528405,60548.0,60547.0,0.938831]
[1724120232842,0.11428405,60548.0,60547.0,0.938831]
[1724120233230,0.11128405,60548.0,60547.0,0.938831]
[1724120233533,0.11828405,60548.0,60547.0,0.940831]
[1724120233732,0.12031173,60548.0,60547.0,0.940831]
[1724120233936,0.12031173,60548.0,60547.0,1.340831]
[1724120235039,0.12031173,60548.0,60547.0,0.940831]
[1724120235238,0.12031173,60548.0,60547.0,1.340831]
[1724120235443,0.12031173,60548.0,60547.0,0.940831]
[1724120236032,0.35474529,60548.0,60547.0,0.940831]
[1724120236231,0.007,60548.0,60547.0,0.99026932]
[1724120236737,0.007,60548.0,60547.0,0.940831]
[1724120237331,0.007,60548.0,60547.0,0.99026483]
[1724120238244,0.007,60548.0,60547.0,0.99026055]
[1724120238638,0.007,60548.0,60547.0,0.940831]
[1724120238945,0.05641583,60548.0,60547.0,0.940831]
[1724120239145,0.007,60548.0,60547.0,1.340831]
[1724120240436,0.05640457,60548.0,60547.0,1.340831]
[1724120240846,0.007,60548.0,60547.0,1.340831]
[1724120241237,0.04940872,60553.0,60548.0,0.49548]
[1724120241435,0.06590285,60557.0,60555.0,0.2283]
[1724120241641,0.06590285,60558.0,60557.0,0.082538]
[1724120241839,0.06590285,60558.0,60557.0,0.128838]
[1724120242039,0.06590285,60558.0,60557.0,0.175938]
[1724120242439,0.06590285,60559.0,60558.0,0.082536]
[1724120243145,0.08956746,60567.0,60557.0,0.01553182]
[1724120243449,0.26834654,60566.0,60557.0,0.3608]
[1724120243638,0.26834654,60565.0,60557.0,0.3608]
[1724120243839,0.18106986,60562.0,60561.0,0.082532]
[1724120244040,0.35984894,60562.0,60561.0,0.082532]
[1724120244438,0.17877908,60562.0,60561.0,0.082532]
[1724120245251,0.35984894,60562.0,60561.0,0.082532]
[1724120245554,0.35984894,60562.0,60561.0,0.083532]
[1724120245746,0.17877908,60562.0,60561.0,0.083532]
[1724120246141,0.17877908,60562.0,60561.0,0.084532]
[1724120246344,0.17877908,60562.0,60561.0,0.002]
[1724120246546,0.32077908,60562.0,60561.0,0.002]
[1724120246752,0.17877908,60562.0,60561.0,0.002]
[1724120246940,0.11052926,60562.0,60561.0,1.44726]
[1724120247141,0.3433704,60562.0,60561.0,1.568992]
[1724120247349,0.17877908,60562.0,60561.0,0.312832]
[1724120248550,0.35977041,60562.0,60561.0,0.312832]
[1724120248750,0.17877908,60562.0,60561.0,0.312832]
[1724120250344,0.08226648,60565.0,60561.0,0.2303]
[1724120250546,0.3608,60565.0,60561.0,0.002]
[1724120250748,0.07634734,60564.0,60561.0,0.002]
[1724120250957,0.02674734,60563.0,60561.0,0.002]
[1724120251141,0.08226269,60562.0,60561.0,0.002]
[1724120251452,0.08226176,60562.0,60561.0,0.002]
[1724120251852,0.08226176,60563.0,60562.0,0.082531]
[1724120252751,0.0496,60564.0,60563.0,0.082529]
[1724120252956,0.07634748,60564.0,60563.0,0.082529]
[1724120253254,0.07634794,60564.0,60563.0,0.082529]
[1724120254558,0.17509393,60564.0,60562.0,0.001]
[1724120254755,0.07314794,60563.0,60562.0,0.001]
[1724120254954,0.07314794,60563.0,60562.0,0.002]
[1724120255551,0.07314794,60563.0,60562.0,0.001]
[1724120255754,0.07314794,60563.0,60562.0,0.002]
[1724120255956,0.07314794,60563.0,60562.0,0.001]
[1724120257152,0.07314794,60563.0,60562.0,0.002]
[1724120258353,0.0464,60563.0,60562.0,0.002]
[1724120264256,0.09579831,60563.0,60562.0,0.002]
[1724120265372,0.0464,60563.0,60562.0,0.002]
[1724120265871,0.09579831,60563.0,60562.0,0.002]
[1724120266070,0.0464,60563.0,60562.0,0.002]
[1724120266558,0.0464,60563.0,60562.0,0.0933]
[1724120266968,0.0464,60563.0,60562.0,0.06789819]
[1724120267359,0.11226441,60563.0,60562.0,0.06789819]
[1724120267554,0.0464,60563.0,60562.0,0.06789819]
[1724120268155,0.0464,60563.0,60560.0,0.06590389]
[1724120268156,1.13946,60563.0,60560.0,0.06590389]
[1724120268356,1.13946,60563.0,60557.0,0.06590389]
[1724120268357,0.4521,60561.0,60557.0,0.06590389]
[1724120268569,0.0913,60558.0,60557.0,0.06590389]
[1724120268867,0.06595128,60559.0,60556.0,0.06590389]
[1724120269068,0.06595128,60560.0,60558.0,0.06590389]
[1724120269364,4.1308,60561.0,60560.0,0.0923]
[1724120269563,4.14269425,60561.0,60560.0,0.0923]
[1724120269769,3.78189425,60561.0,60560.0,0.15820389]
[1724120269959,3.78189425,60561.0,60560.0,0.0913]
[1724120269960,0.04945345,60561.0,60560.0,0.0913]
[1724120270160,0.0941,60563.0,60560.0,0.0913]
[1724120270161,0.14355345,60563.0,60560.0,0.173833]
[1724120270356,0.14455345,60563.0,60562.0,0.06588257]
[1724120270563,0.15666435,60563.0,60562.0,0.06588257]
[1724120271172,0.15566435,60563.0,60562.0,0.06588257]
[1724120272062,0.1062109,60563.0,60562.0,0.06588257]
[1724120272263,0.1062109,60563.0,60560.0,0.084533]
[1724120272559,0.1062109,60563.0,60561.0,0.29069418]
[1724120272760,0.0605109,60563.0,60562.0,0.001]
[1724120273263,0.0595109,60563.0,60562.0,0.001]
[1724120273469,0.0615109,60563.0,60562.0,0.001]
[1724120273970,0.0615109,60563.0,60562.0,0.002]
[1724120275668,0.0151109,60563.0,60562.0,0.002]
[1724120281269,0.09744142,60563.0,60562.0,0.002]
[1724120282976,0.06895535,60563.0,60562.0,0.15037521]
[1724120283172,0.06895535,60563.0,60562.0,0.084531]
[1724120283173,0.003,60563.0,60562.0,0.084531]
[1724120283378,0.05245928,60563.0,60562.0,0.084531]
[1724120283677,0.003,60563.0,60562.0,0.084531]
[1724120284766,0.003,60563.0,60562.0,0.29266168]
[1724120284973,0.003,60563.0,60562.0,0.21022862]
[1724120285166,0.003,60563.0,60562.0,0.16673764]
[1724120285375,0.0494274,60570.0,60562.0,1.10558993]
[1724120285578,0.45954599,60585.0,60570.0,0.08252]
[1724120285579,0.0494274,60571.0,60570.0,0.08252]
[1724120285784,0.06595535,60574.0,60573.0,0.082516]
[1724120286080,0.3608,60585.0,60573.0,0.082516]
[1724120286081,0.06595535,60575.0,60573.0,0.082516]
[1724120286280,0.06595535,60576.0,60575.0,0.082513]
[1724120286479,0.3608,60580.0,60577.0,0.08251]
[1724120287370,0.3608,60580.0,60578.0,0.082509]
[1724120287577,0.06584484,60579.0,60578.0,0.082509]
[1724120288680,0.3608,60580.0,60578.0,0.082509]
[1724120289077,0.3608,60580.0,60578.0,0.083509]
[1724120289984,0.3608,60580.0,60578.0,0.084509]
[1724120290881,0.37241371,60585.0,60578.0,0.084509]
[1724120290882,0.01161371,60585.0,60580.0,0.082505]
[1724120291080,0.14246913,60587.0,60583.0,0.04920833]
[1724120291578,0.0931,60587.0,60583.0,0.04920833]
[1724120291774,0.14246913,60587.0,60582.0,0.04920833]
[1724120292178,0.1542145,60587.0,60582.0,0.04920833]
[1724120292376,0.1542145,60587.0,60580.0,0.082505]
[1724120292377,0.3608,60585.0,60581.0,0.04920833]
[1724120292581,0.0913,60584.0,60581.0,0.04920833]
[1724120293083,0.0913,60584.0,60583.0,0.001]
[1724120293579,0.3608,60585.0,60583.0,0.0923]
[1724120294179,0.3608,60585.0,60583.0,0.0913]
[1724120295484,0.3608,60585.0,60584.0,0.082501]
[1724120295781,0.38753929,60585.0,60584.0,0.082501]
[1724120296691,0.38753929,60585.0,60584.0,0.083501]
[1724120296987,0.38753929,60585.0,60584.0,0.084501]
[1724120299582,0.47883929,60585.0,60584.0,0.002]
[1724120299782,0.11803929,60585.0,60584.0,0.002]
[1724120299981,0.47883929,60585.0,60584.0,0.002]
[1724120300784,0.47883929,60585.0,60578.0,0.0913]
[1724120300785,1.11399929,60585.0,60578.0,0.0913]
[1724120300991,0.08214608,60580.0,60576.0,0.45234773]
[1724120301189,0.13204608,60579.0,60576.0,0.45234773]
[1724120301388,3.90204608,60579.0,60576.0,0.45234773]
[1724120301791,0.13204608,60579.0,60576.0,0.45234773]
[1724120301991,0.13204608,60579.0,60578.0,0.001]
[1724120302787,0.082509,60578.0,60576.0,0.36304773]
[1724120302986,0.02674185,60577.0,60576.0,0.36304773]
[1724120303390,1.28278185,60577.0,60576.0,0.00224773]
[1724120303688,1.41604,60577.0,60576.0,0.00124773]
[1724120304093,5.25179307,60577.0,60576.0,0.00124773]
[1724120304391,5.18604,60577.0,60576.0,0.00124773]
[1724120304592,5.18604,60577.0,60576.0,0.00024773]
[1724120305490,5.18704,60577.0,60576.0,0.00224773]
[1724120307003,0.082527,60565.0,60563.0,0.04920833]
[1724120307192,0.814,60564.0,60560.0,0.04920833]
[1724120307390,0.08253,60563.0,60558.0,0.04920833]
[1724120307596,0.08253,60563.0,60554.0,0.04920833]
[1724120307597,0.3608,60559.0,60554.0,0.04920833]
[1724120307896,0.3608,60556.0,60551.0,0.29061001]
[1724120308098,0.41013114,60556.0,60552.0,0.04920833]
[1724120308292,0.3608,60556.0,60551.0,0.42236234]
[1724120309192,0.3608,60556.0,60551.0,0.37315401]
[1724120309592,0.37273088,60556.0,60551.0,0.37515401]
[1724120309897,0.37273088,60556.0,60551.0,0.37615401]
[1724120311187,0.37273088,60556.0,60551.0,0.085544]
[1724120311991,0.37273088,60556.0,60552.0,0.082544]
[1724120312303,0.37273088,60556.0,60553.0,0.13175133]
[1724120313301,0.37273088,60556.0,60553.0,0.082543]
[1724120313498,0.37373088,60556.0,60553.0,0.082543]
[1724120313798,0.37373088,60556.0,60553.0,0.13175133]
[1724120314513,0.37373088,60556.0,60554.0,0.082541]
[1724120314808,0.37373088,60556.0,60555.0,0.08254]
[1724120315505,0.3618,60556.0,60555.0,0.08254]
[1724120315702,0.3628,60556.0,60555.0,0.08254]
[1724120317401,0.3638,60556.0,60555.0,0.08254]
[1724120322402,0.003,60556.0,60555.0,0.08254]
[1724120322599,0.003,60556.0,60555.0,0.13174833]
[1724120322803,0.003,60556.0,60555.0,0.35994833]
[1724120323506,0.003,60556.0,60555.0,0.31074]
[1724120323706,0.003,60556.0,60555.0,0.35994833]
[1724120325318,0.003,60556.0,60555.0,0.31074]
[1724120326416,0.003,60556.0,60555.0,0.17384]
[1724120327417,0.003,60556.0,60555.0,0.23944814]
[1724120328208,0.003,60556.0,60555.0,0.17384]
[1724120328612,0.00024773,60561.0,60560.0,0.082533]
[1724120329005,0.00024773,60561.0,60560.0,0.14823221]
[1724120329310,0.00024773,60561.0,60560.0,0.132433]
[1724120330436,0.00124773,60561.0,60560.0,0.133433]
[1724120330828,0.00124773,60561.0,60560.0,0.134433]
[1724120332227,0.00124773,60561.0,60560.0,0.2166]
[1724120332828,0.00124773,60561.0,60560.0,0.34231412]
[1724120333229,0.00124773,60561.0,60560.0,0.26014712]
[1724120333926,0.00124773,60561.0,60560.0,0.62094712]
[1724120334529,0.00124773,60561.0,60560.0,0.63283702]
[1724120334925,0.00124773,60561.0,60560.0,0.62094712]
[1724120335536,0.00124773,60561.0,60560.0,0.57104712]
[1724120336132,0.00124773,60561.0,60560.0,0.65329985]
[1724120336437,0.00124773,60561.0,60560.0,0.65330074]
[1724120336641,0.00124773,60561.0,60560.0,0.52758573]
[1724120336841,0.00124773,60561.0,60560.0,0.65330074]
[1724120337140,0.00124773,60561.0,60560.0,0.52758573]
[1724120337433,0.00124773,60561.0,60560.0,0.445333]
[1724120338235,0.00124773,60561.0,60560.0,0.52758573]
[1724120339328,0.00124773,60561.0,60560.0,0.65330035]
[1724120340344,0.00124773,60561.0,60560.0,0.57104762]
[1724120341036,0.00124773,60561.0,60560.0,0.57104805]
[1724120344948,0.01171083,60566.0,60563.0,0.082529]
[1724120345248,0.04933114,60571.0,60565.0,0.08232903]
[1724120345445,0.04933114,60571.0,60570.0,0.06587047]
[1724120346345,0.04933114,60571.0,60565.0,0.08232903]
[1724120346546,0.04941936,60570.0,60569.0,0.06587887]
[1724120346742,0.3608,60570.0,60569.0,0.06587887]
[1724120348338,0.3608,60570.0,60569.0,0.06687887]
[1724120348544,0.3608,60570.0,60569.0,0.06787887]
[1724120348850,0.49532,60569.0,60564.0,0.04967982]
[1724120349046,0.3608,60565.0,60564.0,0.00024773]
[1724120349353,4.45551834,60565.0,60564.0,0.00024773]
[1724120349647,5.35083834,60565.0,60564.0,0.00024773]
[1724120349838,5.268647,60565.0,60564.0,0.00024773]
[1724120350239,4.213327,60565.0,60564.0,0.00024773]
[1724120350446,0.42667197,60565.0,60564.0,0.00024773]
[1724120350640,0.3608,60565.0,60564.0,0.04967982]
[1724120350839,4.1308,60565.0,60564.0,0.04967982]
[1724120351047,4.1308,60565.0,60564.0,0.05067982]
[1724120351253,0.3608,60565.0,60564.0,0.00124773]
[1724120351453,0.3608,60565.0,60564.0,0.05068416]
[1724120351953,4.1318,60565.0,60564.0,0.05168416]
[1724120352149,0.3618,60565.0,60564.0,0.05168416]
[1724120352451,0.3618,60565.0,60564.0,0.00224773]
[1724120353053,0.3618,60565.0,60564.0,0.09354773]
[1724120353054,0.37332894,60565.0,60564.0,0.09354773]
[1724120353244,0.37332894,60565.0,60564.0,0.00224773]
[1724120353659,0.42273184,60565.0,60564.0,0.00224773]
[1724120354038,0.42272909,60565.0,60564.0,0.00224773]
[1724120354551,0.37332894,60565.0,60564.0,0.00224773]
[1724120354849,0.42272909,60565.0,60564.0,0.00224773]
[1724120355151,0.37332894,60565.0,60564.0,0.00224773]
[1724120355348,0.06193486,60565.0,60564.0,0.00224773]
[1724120355552,0.01252894,60565.0,60564.0,0.09354773]
[1724120356640,0.06193486,60565.0,60564.0,0.09354773]
[1724120358546,0.01252894,60565.0,60564.0,0.00224773]
[1724120364360,0.10382894,60565.0,60564.0,0.00224773]
[1724120364549,0.001,60565.0,60564.0,0.09354773]
[1724120365054,0.001,60565.0,60564.0,0.21925886]
[1724120365251,0.001,60565.0,60564.0,0.30162796]
[1724120367548,0.001,60565.0,60564.0,0.09354773]
[1724120368153,0.0923,60565.0,60564.0,0.00224773]
[1724120369851,0.174827,60565.0,60564.0,0.00224773]
[1724120370047,0.174827,60565.0,60564.0,0.0516851]
[1724120370243,0.174827,60565.0,60564.0,0.00224773]
[1724120370447,3.944827,60565.0,60564.0,0.00224773]
[1724120372347,4.344827,60565.0,60564.0,0.00224773]
[1724120372546,5.000147,60565.0,60564.0,0.00224773]
[1724120376550,4.600147,60565.0,60564.0,0.00224773]
[1724120376952,5.000147,60565.0,60564.0,0.00224773]
[1724120377145,4.600147,60565.0,60564.0,0.00224773]
[1724120377455,4.104827,60565.0,60564.0,0.00224773]
[1724120377656,4.600147,60565.0,60564.0,0.00224773]
[1724120378359,5.000147,60565.0,60564.0,0.00224773]
[1724120378554,5.00832845,60565.0,60564.0,0.00224773]
[1724120380062,5.72992845,60565.0,60564.0,0.00224773]
[1724120381158,5.72992845,60565.0,60564.0,0.0516851]
[1724120381661,5.721747,60565.0,60564.0,0.0516851]
[1724120381857,5.73006575,60565.0,60564.0,0.0516851]
[1724120382254,5.721747,60565.0,60564.0,0.0516851]
[1724120383059,5.321747,60565.0,60564.0,0.0516851]
[1724120383855,5.721747,60565.0,60564.0,0.0516851]
[1724120384054,5.321747,60565.0,60564.0,0.0516851]
[1724120384456,5.721747,60565.0,60564.0,0.0516851]
[1724120384761,5.721747,60565.0,60564.0,0.00224773]
[1724120384963,5.72994521,60565.0,60564.0,0.00224773]
[1724120389867,5.721747,60565.0,60564.0,0.00224773]
[1724120390453,5.72982056,60565.0,60564.0,0.00224773]
[1724120393059,5.00822056,60565.0,60564.0,0.00224773]
[1724120393464,5.72982056,60565.0,60564.0,0.00224773]
[1724120394368,5.32982056,60565.0,60564.0,0.00224773]
[1724120395466,4.60822056,60565.0,60564.0,0.00224773]
[1724120395668,5.32982056,60565.0,60564.0,0.00224773]
[1724120396371,5.4120119,60565.0,60564.0,0.00224773]
[1724120396963,5.32982056,60565.0,60564.0,0.00224773]
[1724120397359,4.83450056,60565.0,60564.0,0.00224773]
[1724120398971,4.9166919,60565.0,60564.0,0.00224773]
[1724120399170,4.83450056,60565.0,60564.0,0.00224773]
[1724120399367,4.86125214,60565.0,60564.0,0.00224773]
[1724120399970,4.83450056,60565.0,60564.0,0.00224773]
[1724120402171,4.826427,60565.0,60564.0,0.00224773]
[1724120402975,4.104827,60565.0,60564.0,0.00224773]
[1724120405176,0.161,60565.0,60564.0,0.00224773]
[1724120408077,0.24351921,60565.0,60564.0,0.00224773]
[1724120410376,0.083527,60565.0,60564.0,0.00224773]
[1724120410577,0.16604621,60565.0,60564.0,0.00224773]
[1724120410973,0.11027602,60565.0,60564.0,0.00224773]
[1724120411176,5.1251546,60565.0,60564.0,0.00224773]
[1724120411379,5.12121594,60565.0,60545.0,0.04944474]
[1724120411572,5.12121594,60565.0,60544.0,0.0492]
[1724120411573,0.4521,60546.0,60544.0,0.0492]
[1724120412281,0.4521,60546.0,60535.0,0.0497]
[1724120412282,0.082559,60542.0,60535.0,0.0497]
[1724120412472,0.7216,60536.0,60535.0,0.0497]
[1724120412781,0.0494013,60536.0,60535.0,0.0497]
[1724120413171,0.3608,60546.0,60535.0,0.0497]
[1724120413172,0.0494013,60538.0,60535.0,0.141]
[1724120413776,0.0494013,60539.0,60536.0,0.49556]
[1724120413981,0.0494013,60540.0,60538.0,0.0913]
[1724120414279,0.0494013,60540.0,60539.0,0.0453]
[1724120415285,0.04937338,60540.0,60539.0,0.0453]
[1724120415471,0.001,60540.0,60539.0,0.0553]
[1724120415871,0.001,60540.0,60539.0,0.0663]
[1724120415872,0.002,60540.0,60539.0,0.0663]
[1724120416077,0.002,60540.0,60539.0,0.11574474]
[1724120416278,0.3628,60540.0,60539.0,0.11574474]
[1724120416478,0.3628,60540.0,60539.0,0.0663]
[1724120420187,0.002,60540.0,60539.0,0.0663]
[1724120420491,0.3628,60540.0,60539.0,0.0663]
[1724120422978,0.3628,60540.0,60539.0,0.1576]
[1724120423184,0.002,60540.0,60539.0,0.1576]
[1724120423378,0.002,60540.0,60539.0,0.20688924]
[1724120423582,0.002,60540.0,60539.0,0.1576]
[1724120424180,0.0933,60540.0,60539.0,0.021]
[1724120427779,0.0933,60540.0,60539.0,0.07028924]
[1724120427985,0.0933,60540.0,60539.0,0.021]
[1724120428782,0.002,60540.0,60539.0,0.1123]
[1724120432487,0.002,60540.0,60539.0,0.52238055]
[1724120432691,0.002,60540.0,60539.0,0.4731]
[1724120432882,0.002,60540.0,60539.0,0.021]
[1724120433285,0.002,60540.0,60539.0,0.07029453]
[1724120433489,0.002,60540.0,60539.0,0.021]
[1724120437192,0.002,60540.0,60539.0,0.08691521]
[1724120437496,0.002,60540.0,60539.0,0.021]
[1724120438994,0.002,60540.0,60539.0,0.1123]
[1724120439482,0.002,60540.0,60539.0,0.2380577]
[1724120439687,0.002,60540.0,60539.0,0.32044391]
[1724120440590,0.0933,60540.0,60539.0,0.1467577]
[1724120441692,0.0933,60540.0,60539.0,0.14675928]
[1724120444195,0.2433,60540.0,60539.0,0.14675928]
[1724120445193,4.0133,60540.0,60539.0,0.14675928]
[1724120446097,4.095861,60540.0,60539.0,0.14675928]
[1724120446409,4.095861,60540.0,60539.0,0.021]
[1724120446410,4.48342401,60540.0,60539.0,0.021]
[1724120447497,4.5390755,60540.0,60539.0,0.021]
[1724120448692,4.456661,60540.0,60539.0,0.021]
[1724120453103,4.5225536,60540.0,60539.0,0.021]
[1724120454100,4.8833536,60540.0,60539.0,0.021]
[1724120455596,4.817461,60540.0,60539.0,0.021]
[1724120457798,4.88332888,60540.0,60539.0,0.021]
[1724120458006,5.77888888,60540.0,60539.0,0.021]
[1724120458204,5.713021,60540.0,60539.0,0.021]
[1724120458704,5.313021,60540.0,60539.0,0.021]
[1724120458907,5.37888349,60540.0,60539.0,0.021]
[1724120459809,4.88332349,60540.0,60539.0,0.021]
[1724120460009,4.96588449,60540.0,60539.0,0.021]
[1724120463507,4.178422,60540.0,60539.0,0.021]
[1724120463713,4.96588449,60540.0,60539.0,0.021]
[1724120464305,4.88332349,60540.0,60539.0,0.021]
[1724120464506,1.02202349,60540.0,60539.0,0.021]
[1724120464709,0.897461,60540.0,60539.0,0.021]
[1724120464904,1.11685356,60540.0,60539.0,0.021]
[1724120465115,4.837461,60540.0,60539.0,0.021]
[1724120465413,5.79888695,60540.0,60539.0,0.021]
[1724120465614,5.94028349,60540.0,60539.0,0.021]
[1724120466211,5.874421,60540.0,60539.0,0.021]
[1724120466820,5.956982,60540.0,60539.0,0.021]
[1724120467611,0.08257,60533.0,60532.0,0.00038168]
[1724120467811,0.68467,60533.0,60532.0,0.00038168]
[1724120468420,0.82177,60533.0,60532.0,0.00038168]
[1724120468809,0.82277,60533.0,60532.0,0.01438168]
[1724120470210,0.82377,60533.0,60532.0,0.02538168]
[1724120470617,0.87317301,60533.0,60532.0,0.02538168]
[1724120471508,4.59377,60533.0,60532.0,0.02538168]
[1724120472116,4.59377,60533.0,60532.0,0.00387376]
[1724120472309,4.70310829,60533.0,60532.0,0.00387376]
[1724120473109,4.70228161,60533.0,60532.0,0.00387376]
[1724120473311,0.082578,60527.0,60526.0,0.00024773]
[1724120473515,0.85854995,60527.0,60526.0,0.00024773]
[1724120474119,4.62854995,60527.0,60526.0,0.00024773]
[1724120474317,4.62854995,60527.0,60513.0,0.0478]
[1724120474318,0.08258,60526.0,60513.0,0.0478]
[1724120474507,0.804196,60514.0,60513.0,0.0478]
[1724120474713,0.96436304,60514.0,60513.0,0.0478]
[1724120475318,0.94765726,60514.0,60504.0,0.09701219]
[1724120475616,0.04941821,60510.0,60507.0,0.00024773]
[1724120475920,0.52096704,60514.0,60507.0,0.00024773]
[1724120475921,0.3608,60508.0,60507.0,0.00024773]
[1724120477014,0.3618,60508.0,60507.0,0.00024773]
[1724120478122,0.3628,60508.0,60507.0,0.00024773]
[1724120478317,0.3628,60508.0,60507.0,0.49604773]
[1724120478318,0.37399274,60508.0,60507.0,0.49604773]
[1724120482326,0.3628,60508.0,60507.0,0.49604773]
[1724120484521,0.3628,60508.0,60507.0,0.00024773]
[1724120485721,0.3628,60508.0,60507.0,0.89604773]
[1724120485921,0.3628,60508.0,60507.0,0.49604773]
[1724120486530,0.3618,60508.0,60507.0,0.49604773]
[1724120486729,0.3628,60508.0,60507.0,0.49604773]
[1724120487328,0.3628,60508.0,60507.0,0.89604773]
[1724120488317,0.002,60508.0,60507.0,0.49604773]
[1724120488521,0.002,60508.0,60507.0,1.25684773]
[1724120488730,0.00016704,60514.0,60507.0,1.25684773]
[1724120489030,0.00016704,60514.0,60512.0,0.082598]
[1724120489327,0.00016704,60514.0,60513.0,0.627758]
[1724120489929,0.00016704,60514.0,60513.0,0.0494]
[1724120490233,0.00016704,60514.0,60513.0,0.0986228]
[1724120490422,0.00216704,60514.0,60513.0,0.0986228]
[1724120490917,0.00216704,60514.0,60513.0,0.0494]
[1724120491822,0.00216704,60514.0,60513.0,0.09863091]
[1724120492228,0.00216704,60514.0,60513.0,0.0494]
[1724120494935,0.00216704,60514.0,60512.0,0.06561975]
[1724120495129,0.00216704,60514.0,60513.0,0.06561975]
[1724120495327,0.00216704,60514.0,60510.0,0.06561975]